Cogmind - Beta 15 @@@ ROGUE MODE // 2025.10.11 @ 23:17:42 Player: aliser Result: Destroyed self with Grenade Launcher Performance ------------- Evolutions (1) 500 Regions Visited (3) 600 Robots Destroyed (39) 195 Value Destroyed (959) 959 Prototype IDs (0) 0 Alien Tech Used (0) 0 Bonus (63) 63 TOTAL SCORE: 2317 Bonus ------- High Alert Combat Kills 11 Follower Combat Kills 52 Cogmind --------- Core Integrity 0/400 Matter 285/400 Energy 100/100 System Corruption 2% Temperature Cool (0) Movement Walking (260) Ox2 Location -9/Storage Parts ------- > --- POWER (1) -------- (None) > --- PROPULSION (3) --- Aluminum Leg > --- UTILITY (3) ------ Large Storage Unit Medium Matter Pod > --- WEAPON (2) ------- Grenade Launcher Mini Grenade Launcher > --- INVENTORY (15) --- Improved Aluminum Leg Sensor Array Improved Targeting Computer Power Shielding Hacking Suite Field Recycling Unit (57) EM Shotgun Assault Rifle Shotgun Mini Grenade Launcher Plasma Cutter Peak State ------------ > --- POWER ------------ Improved Ion Engine > --- PROPULSION ------- Improved Aluminum Leg Improved Aluminum Leg Improved Aluminum Leg > --- UTILITY ---------- Large Storage Unit Medium Matter Pod Medium Armor Plating > --- WEAPON ----------- Mini Grenade Launcher Mini Grenade Launcher > --- INVENTORY -------- Improved Ion Engine Improved Aluminum Leg Compact Wheel Sensor Array Improved Targeting Computer Power Shielding Light Armor Plating Hacking Suite Field Recycling Unit EM Shotgun Assault Rifle Shotgun Mini Grenade Launcher Plasma Cutter [Rating: 18] Favorites ----------- Power Improved Ion Engine Engine Improved Ion Engine Propulsion Compact Wheel Leg Improved Aluminum Leg Wheel Compact Wheel Utility Medium Matter Pod Device Field Recycling Unit Storage Medium Matter Pod Protection Medium Armor Plating Weapon Autogun Energy Gun EM Shotgun Ballistic Gun Autogun Launcher Mini Grenade Launcher Build | -11 -10 -9 -9 ------- Run | Yrd Mat Mat Sto Slots Evolved 2 | . . 2 . Power . | . . . . Propulsion 1 | . . 1 . Utility 1 | . . 1 . Weapon . | . . . . Parts Attached 33 | 7 4 6 16 Power 3 | 1 . 1 1 Engine 3 | 1 . 1 1 Core . | . . . . Reactor . | . . . . Propulsion 12 | 3 1 2 6 Treads . | . . . . Leg 5 | . . . 5 Wheel 7 | 3 1 2 1 Hover . | . . . . Flight . | . . . . Utility 8 | 1 3 1 3 Device 1 | . 1 . . Storage 4 | 1 1 1 1 Processor . | . . . . Hackware . | . . . . Protection 3 | . 1 . 2 Artifact . | . . . . Weapon 10 | 2 . 2 6 Energy Gun 1 | . . 1 . Energy Cannon . | . . . . Ballistic Gun 3 | 2 . 1 . Ballistic Cannon . | . . . . Launcher 6 | . . . 6 Special Weapon . | . . . . Impact Weapon . | . . . . Slashing Weapon . | . . . . Piercing Weapon . | . . . . Special Melee Weapon . | . . . . Unidentified Prototypes . | . . . . Parts Lost 11 | . . . 11 Power 2 | . . . 2 Propulsion 5 | . . . 5 Utility 2 | . . . 2 Weapon 2 | . . . 2 Highest Loss Streak 8 | . . . 8 To Critical Strikes . | . . . . Average Backups 9 | 1 7 9 12 Power . | . 1 1 . Propulsion 1 | . 1 . 1 Utility 4 | . 2 4 5 Weapon 2 | . 1 3 3 Tool/Special . | . . . . Unused Backups 10 | . 1 2 7 Power 1 | . . 1 . Propulsion . | . . . . Utility 6 | . 1 1 4 Weapon 2 | . . . 2 Tool/Special 1 | . . . 1 Average Slot Usage (%) 94 | . 98 98 89 Engine 10 | . 14 11 9 Leg 4 | . . . 10 Wheel 24 | . 28 32 16 Storage 19 | . 14 21 22 Protection 10 | . 12 11 9 Energy Gun 3 | . . 10 1 Ballistic Gun 14 | . 28 11 7 Launcher 5 | . . . 13 Peak Build Rating 18 | 6 9 14 18 Average Rating 11 | 4 8 13 13 On Entrance 7 | . 6 9 14 Naked Turns . | . . . . Heaviest Build 40 | 13 25 32 40 Greatest Support 42 | 32 32 42 42 Greatest Overweight (x) 8 | . . . 8 Average Overweight (x) . | . . . . Largest Inventory Capacity 15 | 8 10 10 15 Average Capacity 11 | 7 8 10 14 Most Carried 15 | 4 10 10 15 Average Carried 9 | 1 7 9 12 Final Capacity 15 | 8 10 10 15 Final Carried 11 | 4 10 10 11 Class Distribution -------------------- 100% | Mutant Dominant Class ---------------- Mutant | -10/Materials Mutant | -9/Materials Mutant | -9/Storage Resources | -11 -10 -9 -9 ----------- Run | Yrd Mat Mat Sto Matter Collected 993 | 273 92 265 363 Remotely . | . . . . Salvage Created 991 | 71 157 204 559 Parts 64 | 2 10 12 40 Haulers Intercepted 2 | . . 1 1 Recyclers Shooed . | . . . . Parts Field Recycled 9 | . 9 . . Retrieved Matter 75 | . 75 . . Parts Self-Destructed . | . . . . Prevented . | . . . . Kills | -11 -10 -9 -9 ------- Run | Yrd Mat Mat Sto Combat Hostiles Destroyed 28 | . 5 4 19 Guns 10 | . 5 4 1 AOE 18 | . . . 18 Classes Destroyed 10 | 1 4 2 3 Worker 2 | . . 1 1 Builder 1 | . . . 1 Hauler 2 | . . 1 1 Recycler 2 | 1 . . 1 Operator 1 | . 1 . . Watcher 3 | . 1 1 1 Swarmer 9 | . 3 3 3 Grunt 13 | . 2 1 10 Duelist 2 | . . . 2 Sentry 4 | . . . 4 Best Kill Streak 11 | 1 3 3 11 Combat Bots Only 9 | . 3 3 9 Max Kills in Single Turn 4 | 1 1 1 4 Gunslinging . | . . . . Exploded 3 | . . . 3 Melee . | . . . . Uniques/NPCs Destroyed . | . . . . Combat | -11 -10 -9 -9 -------- Run | Yrd Mat Mat Sto Hostile Shots Fired 188 | . 23 37 128 Missed 53 | . 4 12 37 Hits 135 | . 19 25 91 Melee 1 | . . . 1 Projectile 134 | . 19 25 90 Critical Strikes 9 | . . 2 7 Damage Taken 1893 | . 169 295 1429 Core 420 | . 16 99 305 Absorbed by Shields . | . . . . Core Remaining (%) 96 | 100 93 . . Volleys Fired 65 | 7 14 21 23 Largest 2 | 1 2 2 2 Hottest 68 | 20 40 68 60 Shots Fired 112 | 7 28 37 40 Gun 83 | 7 28 37 11 Cannon . | . . . . Launcher 29 | . . . 29 Special . | . . . . Kinetic 67 | 7 28 21 11 Thermal . | . . . . Explosive 29 | . . . 29 Electromagnetic 16 | . . 16 . Robot Hit Streak 10 | 2 10 7 10 Robot Miss Streak 7 | 2 2 7 4 Penetration Max . | . . . . Secondary Targets 1 | . . 1 . Max Gunslinging Chain 1 | . . 1 . Shots Hit Robots 61 | 3 19 19 20 Core Hits 65 | 2 9 12 42 Critical Kills . | . . . . Critical Parts Destroyed . | . . . . Critical Strikes . | . . . . Melee Attacks . | . . . . Impact . | . . . . Slashing . | . . . . Piercing . | . . . . Sneak Attacks . | . . . . Combat Hostiles . | . . . . Follow-up Attacks . | . . . . Damage Inflicted 2356 | 35 206 277 1838 Guns 574 | 35 206 277 56 Cannons . | . . . . Explosions 1782 | . . . 1782 Melee . | . . . . Ramming . | . . . . Kinetic 438 | 35 206 141 56 Thermal . | . . . . Explosive 1782 | . . . 1782 Electromagnetic 136 | . . 136 . Impact . | . . . . Slashing . | . . . . Piercing . | . . . . Highest Corruption 2 | . . . 2 Average Corruption 2 | . . . 2 Corruption Purged . | . . . . Corruption Blocked . | . . . . Effects 4 | . . . 4 Message Errors 1 | . . . 1 Matter Fused 1 | . . . 1 Energy Discharges 1 | . . . 1 Data Loss (minor) 1 | . . . 1 Overload Shots . | . . . . Overflow Damage 41 | . . . 41 Projectiles . | . . . . Explosions 41 | . . . 41 Melee . | . . . . Knockbacks . | . . . . Impact . | . . . . Kinetic . | . . . . Secondary . | . . . . Self-Inflicted Damage 193 | . . . 193 Shots 11 | . . . 11 Rammed . | . . . . Targets Rammed . | . . . . Kicked . | . . . . Crushed . | . . . . Highest Temperature 104 | . 19 104 54 Average Temperature 22 | . 6 37 15 Received Heat Transfer 642 | . 60 99 483 Siege Activations . | . . . . Martial Activations . | . . . . Shielding Activations . | . . . . Robots Disrupted . | . . . . Combat Hostiles . | . . . . Robots Corrupted . | . . . . Combat Hostiles . | . . . . Parts Fried . | . . . . Impact Corruptions . | . . . . Robots Melted . | . . . . Combat Hostiles . | . . . . Parts Melted . | . . . . Heat Transferred . | . . . . Parts Sabotaged . | . . . . Parts Stolen . | . . . . Parts Stripped . | . . . . Power Chain Reactions . | . . . . Alert | -11 -10 -9 -9 ------- Run | Yrd Mat Mat Sto Maximum Alert Level 2 | . . . 2 Low Security (%) 76 | 100 100 100 41 Level 1 21 | . . . 53 Level 2 2 | . . . 5 Level 3 . | . . . . Level 4 . | . . . . Level 5 . | . . . . High Security . | . . . . Max Security . | . . . . Peak Influence 427 | 5 85 81 427 Initial 26 | . . 26 10 Average 87 | . 36 35 172 Influence Increases 1027 | 5 147 139 736 Destroy 0b10 Robot/C 600 | . 100 80 420 Destroy 0b10 Robot/NC 55 | 5 10 15 25 Destroy Leader 130 | . 22 24 84 Allied During Kill 2 | . . . 2 Successful Hack 5 | . . 5 . Disable Machine 60 | . . . 60 Destroy Structure 115 | . . . 115 Lose Combat Pursuer 60 | . 15 15 30 Influence Decreases 615 | 5 85 176 349 Entered New Map 51 | . . 36 15 Time Decay 414 | 5 85 140 184 Lost Part 110 | . . . 110 Lost Ally 40 | . . . 40 Squads Dispatched 7 | . 2 1 4 Investigation 1 | . 1 . . Extermination . | . . . . Reinforcement 3 | . 1 1 1 Assault 2 | . . . 2 Garrison 1 | . . . 1 Intercept . | . . . . Searches Triggered . | . . . . Construction Impeded 1 | . . . 1 Haulers Reinforced . | . . . . Active Scanning Responses . | . . . . Cargo Convoy Interrupts . | . . . . Stealth | -11 -10 -9 -9 --------- Run | Yrd Mat Mat Sto Distress Signals 2 | . . 2 . Communications Jammed . | . . . . Distress Signals . | . . . . Times Spotted 55 | . 11 11 33 Peak Tracking Total 9 | . 4 7 9 Tactical Retreats 4 | . 1 1 2 Traps | -11 -10 -9 -9 ------- Run | Yrd Mat Mat Sto Traps Triggered 1 | . . . 1 Indirectly . | . . . . Trap Hack Attempts . | . . . . Triggered . | . . . . Disarmed . | . . . . Reprogrammed . | . . . . Reused . | . . . . Traps Extracted . | . . . . Installed . | . . . . Triggered . | . . . . Machines | -11 -10 -9 -9 ---------- Run | Yrd Mat Mat Sto Machines Disabled 4 | . . . 4 Max in Single Turn 1 | . . . 1 Machines Repaired . | . . . . Machines Dismantled . | . . . . Machines Sabotaged . | . . . . Overloaded Fab Kills . | . . . . Hacking | -11 -10 -9 -9 --------- Run | Yrd Mat Mat Sto Machines Accessed 5 | . 1 2 2 Terminals 3 | . . 1 2 Fabricators . | . . . . Repair Stations 1 | . 1 . . Recycling Units . | . . . . Scanalyzers 1 | . . 1 . Garrison Access . | . . . . Total Hacks 12 | . 1 5 6 Successful 2 | . 1 1 . Failed 10 | . . 4 6 Catastrophic 4 | . . 1 3 Database Lockouts . | . . . . Manual 8 | . 1 1 6 Terminals 9 | . . 3 6 Fabricators . | . . . . Repair Stations 1 | . 1 . . Recycling Units . | . . . . Scanalyzers 2 | . . 2 . Garrison Access . | . . . . Terminal Hacks 1 | . . 1 . Robot Analysis 1 | . . 1 . Fabricator Hacks . | . . . . Repair Station Hacks . | . . . . Recycling Unit Hacks . | . . . . Scanalyzer . | . . . . Garrison Access Hacks . | . . . . Unauthorized Hacks 1 | . 1 . . Terminals . | . . . . Fabricators . | . . . . Repair Stations 1 | . 1 . . Patch 1 | . 1 . . Recycling Units . | . . . . Scanalyzers . | . . . . Garrison Access . | . . . . Data Cores Recovered . | . . . . Used . | . . . . Hacking Detections 4 | . . 2 2 Full Trace Events 2 | . . . 2 Feedback Events . | . . . . Feedback Blocked . | . . . . Robot Schematics Acquired . | . . . . Robots Built . | . . . . Authchips . | . . . . Time . | . . . . Total Robot Build Rating . | . . . . Part Schematics Acquired . | . . . . Parts Built . | . . . . Authchips . | . . . . Time . | . . . . Total Part Build Rating . | . . . . Parts Repaired . | . . . . Time . | . . . . Parts Recycled . | . . . . Recycled Matter . | . . . . Retrieved Matter . | . . . . Retrieved Components . | . . . . Parts Scanalyzed . | . . . . Part Schematics Acquired . | . . . . Parts Damaged . | . . . . Bothacking | -11 -10 -9 -9 ------------ Run | Yrd Mat Mat Sto Used RIF Installer . | . . . . Robots Hacked . | . . . . Non-combat . | . . . . Combat . | . . . . Robot Hacks Applied . | . . . . Relay Couplers Released . | . . . . Fabnet Peak Effective % . | . . . . Robots Rewired . | . . . . Allies Hacked . | . . . . Hacks Repelled . | . . . . Allies | -11 -10 -9 -9 -------- Run | Yrd Mat Mat Sto Total Allies 2 | . . . 2 Largest Group 2 | . . . 2 Highest-Rated Group 62 | . . . 62 Highest-Rated Ally 31 | . . . 31 Total Orders . | . . . . Ally Attacks 5 | . . . 5 Total Damage 64 | . . . 64 Kills 2 | . . . 2 Allies Corrupted . | . . . . Allies Melted . | . . . . Intel | -11 -10 -9 -9 ------- Run | Yrd Mat Mat Sto Active Infowar (turns) . | . . . . Robot Analysis Total 1 | . . 1 . Derelict Logs Recovered . | . . . . Drone Launches . | . . . . Drone Recoveries . | . . . . Exploration | -11 -10 -9 -9 ------------- Run | Yrd Mat Mat Sto Turns Passed 1080 | 75 259 318 428 Spaces Moved 737 | 52 188 207 290 Core 5 | 4 . . 1 Treads . | . . . . Legs 84 | . . . 84 Wheels 648 | 48 188 207 205 Hover . | . . . . Flight . | . . . . Fastest Speed 50 | 50 100 93 93 Average Speed 101 | 89 100 93 110 Slowest Speed 450 | 100 100 100 450 Overloaded Moves . | . . . . Propulsion Burnouts . | . . . . Robots Hopped . | . . . . Potential Cave-ins 2 | . . . 2 Cave-ins Triggered . | . . . . Exploration Rate (%) 26 | 5 38 23 41 Regions Visited 3 Branch Regions 1 Pre-discovered Areas . | . . . . Known Exits Taken . | . . . . Unknown Exits Taken 3 | 1 1 1 . Scrap Searched . | . . . . Spaces Dug 13 | . . . 13 Terrain Destroyed 157 | . . . 157 Melee . | . . . . Projectile . | . . . . AOE 157 | . . . 157 Terrain Rammed . | . . . . Walls Destroyed . | . . . . Machines Disabled . | . . . . Actions | -11 -10 -9 -9 --------- Run | Yrd Mat Mat Sto Total 961 | 70 232 299 360 Wait 83 | . 17 54 12 Move 734 | 51 187 206 290 Hop . | . . . . Pick Up 23 | 5 7 5 6 Fast Attach 11 | 5 1 . 5 Attach 8 | 1 . 2 5 Detach . | . . . . Swap 19 | 1 4 5 9 Drop 16 | . 2 6 8 Fire 65 | 7 14 21 23 Melee . | . . . . Ram . | . . . . Kick . | . . . . Crush . | . . . . Escape Stasis . | . . . . Rewire 2 | . . . 2 Trap . | . . . . Miscellaneous . | . . . . Route ------- -11/Scrapyard -10/Materials -9/Materials -9/Storage History --------- Turn | Location | Event 17 | -11/Scrapyard | Discovered new exit (range 16) 76 | -11/Scrapyard | Entered Materials 208 | -10/Materials | Discovered new exit (range 8) 334 | -10/Materials | Build established: Mutant 335 | -10/Materials | Entered another Materials area 335 | -9/Materials | Evolved 2 slots: Propulsion x1, Utility x1 625 | -9/Materials | Discovered new exit (range 11) 653 | -9/Materials | Entered Storage 833 | -9/Storage | Core integrity fell below 50% 855 | -9/Storage | Met a pair of Derelict thieves 857 | -9/Storage | Destroyed 9 combat bots 1002 | -9/Storage | Core integrity fell below 20% 1054 | -9/Storage | Garrison activated, responded to threat 1059 | -9/Storage | Lost 8 parts (2p3n2u1w) 1081 | -9/Storage | Destroyed self with Grenade Launcher Last Messages --------------- K-01 Serf collects debris. U-05 Engineer calls for garrison support. ALERT: Activating Garrison Access S001. U-05 Engineer lays Concrete. The unstable cave ceiling collapses. U-05 Engineer lays Concrete. K-01 Serf collects debris. U-05 Engineer destroyed. G-34 Mercenary destroyed. Y-45 Defender destroyed. ALERT: Construction progress impeded, dispatching reinforcements to local area. The unstable cave ceiling collapses. Acquired 13 matter. K-01 Serf collects debris. The unstable cave ceiling collapses. Connecting with Terminal... Com. Wheel destroyed. Critical hit (Burn: +37). ONUL|A,U:AY